Cogmind - Beta 9.4 @@@ ROGUE MODE // 2020.03.10 @ 22:29:18 Player: lsend Result: Destroyed by S-27 Virus with Autogun Performance ------------- Evolutions (6) 3000 Regions Visited (12) 2400 Robots Destroyed (28) 140 Value Destroyed (936) 936 Prototype IDs (11) 220 Alien Tech Used (0) 0 Bonus (1487) 1487 TOTAL SCORE: 8183 Bonus ------- High Alert Combat Kills 286 Follower Combat Kills 1201 Cogmind --------- Core Integrity 0/1150 Matter 233/300 Energy 69/100 System Corruption 0% Temperature Cool (0) Movement Core (50) Location -4/Factory Parts ------- > --- POWER (2) -------- (None) > --- PROPULSION (5) --- (None) > --- UTILITY (10) ----- (None) > --- WEAPON (2) ------- (None) > --- INVENTORY (4) ---- Light Nuclear Core Improved Deuterium Engine Light Antimatter Reactor Improved Medium Armor Plating Peak State ------------ > --- POWER ------------ Improved Deuterium Engine Light Antimatter Reactor > --- PROPULSION ------- Impulse Thruster Array > --- UTILITY ---------- Improved Signal Interpreter Advanced Signal Interpreter Improved Medium Armor Plating Advanced Focal Shield Hacking Suite Advanced Hacking Suite > --- WEAPON ----------- Axe > --- INVENTORY -------- Light Nuclear Core [Rating: 55] Favorites ----------- Power Light Nuclear Core Engine Ion Engine Power Core Light Nuclear Core Reactor Light Antimatter Reactor Propulsion Medium Treads Treads Medium Treads Leg Improved Titanium Leg Flight Unit Cooled VTOL Module Utility Hacking Suite Device Structural Scanner Processor Improved Signal Interpreter Hackware Hacking Suite Protection Improved Medium Armor Plating Weapon Shock Maul Energy Gun Improved Lightning Gun Energy Cannon Heavy Neutron Cannon Launcher Grenade Launcher Impact Weapon Shock Maul Slashing Weapon Axe Special Melee Weapon Datajack Build | -11 -10 -10 -9 -9 -8 -7 -7 -7 -5 -5 -5 -4 ------- Run | Scr Mat Min Mat Min Mat Fac Sto Rec Fac Was Fac Fac Slots Evolved 12 | . . . 2 . 2 2 . . 4 . . 2 Power 1 | . . . . . . . . . 1 . . . Propulsion 3 | . . . 1 . 1 1 . . . . . . Utility 8 | . . . 1 . 1 1 . . 3 . . 2 Weapon . | . . . . . . . . . . . . . Parts Attached 49 | 2 1 1 . . 4 10 15 1 3 1 6 5 Power 6 | . . 1 . . . . 2 . . . 1 2 Engine 3 | . . 1 . . . . 1 . . . . 1 Core 2 | . . . . . . . 1 . . . 1 . Reactor 1 | . . . . . . . . . . . . 1 Propulsion 15 | 2 . . . . . 7 3 . 2 1 . . Treads 4 | 2 . . . . . 2 . . . . . . Leg 3 | . . . . . . 3 . . . . . . Wheel . | . . . . . . . . . . . . . Hover . | . . . . . . . . . . . . . Flight 8 | . . . . . . 2 3 . 2 1 . . Utility 15 | . 1 . . . 3 2 2 1 . . 4 2 Device 7 | . 1 . . . 2 1 1 1 . . . 1 Storage . | . . . . . . . . . . . . . Processor 2 | . . . . . . . . . . . 1 1 Hackware 5 | . . . . . 1 1 1 . . . 2 . Protection 1 | . . . . . . . . . . . 1 . Artifact . | . . . . . . . . . . . . . Weapon 13 | . . . . . 1 1 8 . 1 . 1 1 Energy Gun 1 | . . . . . . . 1 . . . . . Energy Cannon 1 | . . . . . . . . . . . . 1 Ballistic Gun . | . . . . . . . . . . . . . Ballistic Cannon . | . . . . . . . . . . . . . Launcher 3 | . . . . . 1 . 1 . 1 . . . Special Weapon . | . . . . . . . . . . . . . Impact Weapon 1 | . . . . . . . 1 . . . . . Slashing Weapon 6 | . . . . . . 1 4 . . . 1 . Piercing Weapon . | . . . . . . . . . . . . . Special Melee Weapon 1 | . . . . . . . 1 . . . . . Unidentified Prototypes 5 | . . . . . . 1 3 . 1 . . . Parts Lost 29 | . . 2 . 1 . 1 10 . 7 . 1 7 Power 3 | . . . . . . . 2 . . . 1 . Propulsion 9 | . . 2 . . . . 3 . 3 . . 1 Utility 12 | . . . . 1 . 1 4 . 2 . . 4 Weapon 5 | . . . . . . . 1 . 2 . . 2 Highest Loss Streak 5 | . . 2 . 1 . 1 5 . 4 . 1 5 Average Slot Usage (%) 34 | . 28 38 11 11 23 41 51 29 18 4 26 26 Treads 6 | . 28 23 . . . 12 4 . . . . . Leg 2 | . . . . . . 9 2 . . . . . Flight 5 | . . . . . . . 13 7 6 4 5 1 Device 7 | . . 14 11 11 12 7 7 6 2 . . . Hackware 7 | . . . . . 8 8 13 7 4 . 3 9 Impact Weapon 1 | . . . . . . . 3 7 2 . . . Slashing Weapon 1 | . . . . . . . 1 . . . 4 3 Naked Turns 49 | . . . . 9 3 . . . 14 11 . 12 Heaviest Build 25 | . 1 1 1 1 4 3 11 4 7 . 17 25 Greatest Support 27 | 3 3 3 3 3 9 3 16 5 18 3 27 27 Greatest Overweight (x) 1 | . . . . . . . 1 . . . . . Average Overweight (x) . | . . . . . . . . . . . . . Largest Inventory Capacity 4 | 4 4 4 4 4 4 4 4 4 4 4 4 4 Average Capacity 4 | 4 4 4 4 4 4 4 4 4 4 4 4 4 Most Carried 4 | . . 1 1 2 2 4 4 4 4 4 4 4 Average Carried 2 | . . . 1 1 1 3 2 3 4 4 2 3 Final Capacity 4 | 4 4 4 4 4 4 4 4 4 4 4 4 4 Final Carried 4 | . . 1 1 2 2 4 3 4 4 4 2 4 Class Distribution -------------------- 73% | Mutant 22% | Hacker-Mutant 3% | Commander-Mutant Dominant Class ---------------- Mutant | -10/Materials Mutant | -10/Mines Mutant | -9/Materials Mutant | -9/Mines Mutant | -8/Materials Mutant | -7/Factory Mutant | -7/Storage Mutant | -7/Recycling Mutant | -5/Factory Mutant | -5/Waste Mutant | -5/Factory Hacker-Mutant | -4/Factory Resources | -11 -10 -10 -9 -9 -8 -7 -7 -7 -5 -5 -5 -4 ----------- Run | Scr Mat Min Mat Min Mat Fac Sto Rec Fac Was Fac Fac Matter Collected 648 | 218 . 22 . . . 145 223 10 . . . 30 Remotely . | . . . . . . . . . . . . . Salvage Created 799 | . . 24 . . 31 . 612 . 88 . . 44 Parts 37 | . . 3 . . 5 . 22 . 5 . . 2 Haulers Intercepted 4 | . . . . . . . 4 . . . . . Recyclers Shooed . | . . . . . . . . . . . . . Parts Field Recycled . | . . . . . . . . . . . . . Retrieved Matter . | . . . . . . . . . . . . . Parts Self-Destructed . | . . . . . . . . . . . . . Prevented . | . . . . . . . . . . . . . Kills | -11 -10 -10 -9 -9 -8 -7 -7 -7 -5 -5 -5 -4 ------- Run | Scr Mat Min Mat Min Mat Fac Sto Rec Fac Was Fac Fac Combat Hostiles Destroyed 22 | . . . . . 5 . 7 . 6 . . 4 Melee 6 | . . . . . . . 6 . . . . . AOE 15 | . . . . . 5 . . . 6 . . 4 Classes Destroyed 8 | . . 1 . . 2 . 4 . 1 . . . Worker 1 | . . . . . . . . . 1 . . . Builder 1 | . . 1 . . . . . . . . . . Hauler 4 | . . . . . . . 4 . . . . . Swarmer 14 | . . . . . 4 . . . 6 . . 4 Grunt 4 | . . . . . . . 4 . . . . . Brawler 1 | . . . . . . . 1 . . . . . Sentry 2 | . . . . . . . 2 . . . . . Hunter 1 | . . . . . 1 . . . . . . . Best Kill Streak 7 | . . 1 . . 5 . 3 . 7 . . 4 Combat Bots Only 6 | . . . . . 5 . 3 . 6 . . 4 Max Kills in Single Turn 4 | . . 1 . . 2 . 1 . 4 . . 4 Gunslinging . | . . . . . . . . . . . . . Exploded 4 | . . . . . 2 . . . 4 . . 4 Melee 1 | . . . . . . . 1 . . . . . Uniques/NPCs Destroyed . | . . . . . . . . . . . . . Combat | -11 -10 -10 -9 -9 -8 -7 -7 -7 -5 -5 -5 -4 -------- Run | Scr Mat Min Mat Min Mat Fac Sto Rec Fac Was Fac Fac Damage Taken 5044 | . . 543 104 188 315 272 900 . 1042 43 182 1455 Core 3224 | . . 246 94 187 237 49 445 . 744 43 23 1156 Absorbed by Shields . | . . . . . . . . . . . . . Core Remaining (%) 39 | 100 . 1 . 29 56 . . 29 . . 19 . Volleys Fired 13 | . . . . . 8 . . . 3 . . 2 Largest 1 | . . . . . 1 . . . 1 . . 1 Hottest 110 | . . . . . 30 . . . 39 . . 110 Shots Fired 13 | . . . . . 8 . . . 3 . . 2 Gun . | . . . . . . . . . . . . . Cannon 2 | . . . . . . . . . . . . 2 Launcher 11 | . . . . . 8 . . . 3 . . . Special . | . . . . . . . . . . . . . Kinetic . | . . . . . . . . . . . . . Thermal 2 | . . . . . . . . . . . . 2 Explosive 11 | . . . . . 8 . . . 3 . . . Electromagnetic . | . . . . . . . . . . . . . Robot Hit Streak 3 | . . . . . 2 . . . 3 . . . Robot Miss Streak 2 | . . . . . 2 . . . 1 . . 2 Penetration Max . | . . . . . . . . . . . . . Secondary Targets . | . . . . . . . . . . . . . Shots Hit Robots 41 | . . . . . 2 . 37 . 2 . . . Core Hits 43 | . . 2 . 1 12 . 8 . 14 . . 6 Critical Hits . | . . . . . . . . . . . . . Critical Kills . | . . . . . . . . . . . . . Critical Parts Destroyed . | . . . . . . . . . . . . . Melee Attacks 47 | . . . . . . . 47 . . . . . Impact 19 | . . . . . . . 19 . . . . . Slashing 27 | . . . . . . . 27 . . . . . Piercing . | . . . . . . . . . . . . . Sneak Attacks 9 | . . . . . . . 9 . . . . . Combat Hostiles 4 | . . . . . . . 4 . . . . . Follow-up Attacks . | . . . . . . . . . . . . . Damage Inflicted 3284 | . . 20 . 9 432 . 1756 . 591 . . 476 Guns . | . . . . . . . . . . . . . Cannons . | . . . . . . . . . . . . . Explosions 1467 | . . . . . 432 . . . 591 . . 444 Melee 1756 | . . . . . . . 1756 . . . . . Ramming 61 | . . 20 . 9 . . . . . . . 32 Kinetic . | . . . . . . . . . . . . . Thermal 444 | . . . . . . . . . . . . 444 Explosive 1023 | . . . . . 432 . . . 591 . . . Electromagnetic . | . . . . . . . . . . . . . Impact 747 | . . . . . . . 747 . . . . . Slashing 1009 | . . . . . . . 1009 . . . . . Piercing . | . . . . . . . . . . . . . Highest Corruption 5 | . . . . 5 . . . . . . . . Average Corruption 5 | . . . . 5 . . . . . . . . Corruption Purged . | . . . . . . . . . . . . . Overload Shots . | . . . . . . . . . . . . . Overflow Damage 204 | . . . . . 16 . 69 . 38 . . 81 Projectiles . | . . . . . . . . . . . . . Explosions 135 | . . . . . 16 . . . 38 . . 81 Melee 69 | . . . . . . . 69 . . . . . Knockbacks 3 | . . . . . . . 3 . . . . . Impact 3 | . . . . . . . 3 . . . . . Kinetic . | . . . . . . . . . . . . . Secondary . | . . . . . . . . . . . . . Self-Inflicted Damage 237 | . . 5 . 4 14 . . . . . . 214 Shots 5 | . . . . . 2 . . . . . . 3 Rammed 19 | . . 9 . 2 . . . . . . . 8 Targets Rammed 19 | . . 9 . 2 . . . . . . . 8 Kicked . | . . . . . . . . . . . . . Crushed . | . . . . . . . . . . . . . Highest Temperature 385 | . . . . . . 385 . . . . . 84 Average Temperature 153 | . . . . . . 198 . . . . . 46 Received Heat Transfer 642 | . . . 48 . 18 117 195 . 63 . 18 183 Siege Activations . | . . . . . . . . . . . . . Robots Corrupted . | . . . . . . . . . . . . . Combat Hostiles . | . . . . . . . . . . . . . Parts Fried 4 | . . . . . . . 4 . . . . . Impact Corruptions 5 | . . . . . . . 5 . . . . . Robots Melted . | . . . . . . . . . . . . . Combat Hostiles . | . . . . . . . . . . . . . Parts Melted 1 | . . . . . . . . . . . . 1 Heat Transferred 250 | . . . . . . . . . . . . 250 Parts Sabotaged . | . . . . . . . . . . . . . Parts Stolen . | . . . . . . . . . . . . . Parts Stripped . | . . . . . . . . . . . . . Power Chain Reactions . | . . . . . . . . . . . . . Missiles Intercepted . | . . . . . . . . . . . . . Alert | -11 -10 -10 -9 -9 -8 -7 -7 -7 -5 -5 -5 -4 ------- Run | Scr Mat Min Mat Min Mat Fac Sto Rec Fac Was Fac Fac Peak Influence 1342 | . 5 6 73 81 248 218 1095 441 1342 520 436 429 Average Influence 403 | . 3 1 20 49 157 142 729 422 1152 492 384 241 Maximum Alert Level 4 | . . . . . 1 1 3 2 4 2 2 2 Low Security (%) 38 | 100 100 100 100 100 44 81 5 . . . . . Level 1 21 | . . . . . 55 18 10 . . . 83 94 Level 2 13 | . . . . . . . 24 100 . 100 16 5 Level 3 21 | . . . . . . . 60 . 45 . . . Level 4 4 | . . . . . . . . . 54 . . . Level 5 . | . . . . . . . . . . . . . High Security . | . . . . . . . . . . . . . Max Security . | . . . . . . . . . . . . . Squads Dispatched 17 | . . . 1 . 2 1 11 . . . 1 1 Investigation 3 | . . . . . . . 3 . . . . . Extermination . | . . . . . . . . . . . . . Reinforcement 11 | . . . 1 . 2 1 5 . . . 1 1 Assault 2 | . . . . . . . 2 . . . . . Garrison 1 | . . . . . . . 1 . . . . . Intercept . | . . . . . . . . . . . . . Construction Impeded 1 | . . . . . 1 . . . . . . . Haulers Reinforced 4 | . . . . . . . 3 . . . . 1 Stealth | -11 -10 -10 -9 -9 -8 -7 -7 -7 -5 -5 -5 -4 --------- Run | Scr Mat Min Mat Min Mat Fac Sto Rec Fac Was Fac Fac Distress Signals 10 | . . . 2 . 2 2 4 . . . . . Communications Jammed . | . . . . . . . . . . . . . Distress Signals . | . . . . . . . . . . . . . Times Spotted 220 | . 1 17 8 19 12 17 53 6 40 6 21 20 Peak Tracking Total 23 | . 1 3 10 14 7 14 6 5 23 6 10 18 Tactical Retreats 32 | . . 6 . 4 1 4 10 . 3 . 2 2 Traps | -11 -10 -10 -9 -9 -8 -7 -7 -7 -5 -5 -5 -4 ------- Run | Scr Mat Min Mat Min Mat Fac Sto Rec Fac Was Fac Fac Traps Triggered 4 | . . . . . . . 1 . 2 . 1 . Indirectly . | . . . . . . . . . . . . . Trap Hack Attempts . | . . . . . . . . . . . . . Triggered . | . . . . . . . . . . . . . Disarmed . | . . . . . . . . . . . . . Reprogrammed . | . . . . . . . . . . . . . Reused . | . . . . . . . . . . . . . Traps Extracted . | . . . . . . . . . . . . . Installed . | . . . . . . . . . . . . . Triggered . | . . . . . . . . . . . . . Machines | -11 -10 -10 -9 -9 -8 -7 -7 -7 -5 -5 -5 -4 ---------- Run | Scr Mat Min Mat Min Mat Fac Sto Rec Fac Was Fac Fac Machines Disabled 12 | . . . . . 1 . 6 . . . . 5 Max in Single Turn 5 | . . . . . 1 . 1 . . . . 5 Garrison Access 1 | . . . . . . . 1 . . . . . Machines Sabotaged . | . . . . . . . . . . . . . Garrisons Compromised . | . . . . . . . . . . . . . Overloaded Fab Kills . | . . . . . . . . . . . . . Fab Network Shutdowns . | . . . . . . . . . . . . . Hacking | -11 -10 -10 -9 -9 -8 -7 -7 -7 -5 -5 -5 -4 --------- Run | Scr Mat Min Mat Min Mat Fac Sto Rec Fac Was Fac Fac Machines Accessed 26 | . 1 . 1 . 2 5 11 1 2 . 2 1 Terminals 24 | . 1 . 1 . 2 4 10 1 2 . 2 1 Fabricators . | . . . . . . . . . . . . . Repair Stations . | . . . . . . . . . . . . . Recycling Units 2 | . . . . . . 1 1 . . . . . Scanalyzers . | . . . . . . . . . . . . . Garrison Access . | . . . . . . . . . . . . . Total Hacks 66 | . 3 . 5 . 8 7 27 3 4 . 5 4 Successful 44 | . 2 . 2 . 3 5 21 . 3 . 4 4 Failed 22 | . 1 . 3 . 5 2 6 3 1 . 1 . Catastrophic 6 | . . . . . 3 2 . 1 . . . . Database Lockouts . | . . . . . . . . . . . . . Manual 44 | . 1 . 5 . 7 2 18 3 1 . 4 3 Terminals 61 | . 3 . 5 . 8 6 23 3 4 . 5 4 Fabricators . | . . . . . . . . . . . . . Repair Stations . | . . . . . . . . . . . . . Recycling Units 5 | . . . . . . 1 4 . . . . . Scanalyzers . | . . . . . . . . . . . . . Garrison Access . | . . . . . . . . . . . . . Terminal Hacks 23 | . 2 . 1 . 3 4 5 . 2 . 3 3 Open Door 4 | . . . . . . . 4 . . . . . Level Access Points 4 | . . . . . 1 1 . . . . 1 1 Branch Access Points 3 | . . . 1 . 1 1 . . . . . . Emergency Access Points 3 | . . . . . . . . . . . 1 2 Terminal Index 1 | . . . . . . . . . 1 . . . Unreport Threat 1 | . . . . . . . 1 . . . . . Locate Traps 4 | . 1 . . . . 1 . . 1 . 1 . Zone Layout 3 | . 1 . . . 1 1 . . . . . . Fabricator Hacks . | . . . . . . . . . . . . . Repair Station Hacks . | . . . . . . . . . . . . . Recycling Unit Hacks 2 | . . . . . . 1 1 . . . . . Retrieve Components 2 | . . . . . . 1 1 . . . . . Scanalyzer . | . . . . . . . . . . . . . Garrison Access Hacks . | . . . . . . . . . . . . . Unauthorized Hacks 41 | . 1 . 2 . . . 32 . 2 . 2 2 Terminals 19 | . . . 1 . . . 15 . 1 . 1 1 Track 6 | . . . . . . . 6 . . . . . Botnet 11 | . . . 1 . . . 7 . 1 . 1 1 Disrupt 2 | . . . . . . . 2 . . . . . Fabricators . | . . . . . . . . . . . . . Repair Stations . | . . . . . . . . . . . . . Recycling Units . | . . . . . . . . . . . . . Scanalyzers . | . . . . . . . . . . . . . Garrison Access . | . . . . . . . . . . . . . Data Cores Recovered . | . . . . . . . . . . . . . Used . | . . . . . . . . . . . . . Hacking Detections 19 | . 1 . 1 . 2 2 8 1 2 . 2 . Full Trace Events . | . . . . . . . . . . . . . Feedback Events . | . . . . . . . . . . . . . Feedback Blocked . | . . . . . . . . . . . . . Robot Schematics Acquired . | . . . . . . . . . . . . . Robots Built . | . . . . . . . . . . . . . Matter . | . . . . . . . . . . . . . Time . | . . . . . . . . . . . . . Total Robot Build Rating . | . . . . . . . . . . . . . Part Schematics Acquired . | . . . . . . . . . . . . . Parts Built . | . . . . . . . . . . . . . Matter . | . . . . . . . . . . . . . Time . | . . . . . . . . . . . . . Total Part Build Rating . | . . . . . . . . . . . . . Parts Repaired . | . . . . . . . . . . . . . Time . | . . . . . . . . . . . . . Parts Recycled . | . . . . . . . . . . . . . Recycled Matter . | . . . . . . . . . . . . . Retrieved Matter . | . . . . . . . . . . . . . Retrieved Components 3 | . . . . . . 2 1 . . . . . Parts Scanalyzed . | . . . . . . . . . . . . . Part Schematics Acquired . | . . . . . . . . . . . . . Parts Damaged . | . . . . . . . . . . . . . Bothacking | -11 -10 -10 -9 -9 -8 -7 -7 -7 -5 -5 -5 -4 ------------ Run | Scr Mat Min Mat Min Mat Fac Sto Rec Fac Was Fac Fac Used RIF Installer . | . . . . . . . . . . . . . Robots Hacked 1 | . . . . . . . 1 . . . . . Non-combat . | . . . . . . . . . . . . . Combat 1 | . . . . . . . 1 . . . . . Robot Hacks Applied 1 | . . . . . . . 1 . . . . . parse_system 1 | . . . . . . . 1 . . . . . Relay Couplers Released 4 | . . . . . . . 4 . . . . . Machine Destruction 4 | . . . . . . . 4 . . . . . Robots Rewired . | . . . . . . . . . . . . . Allies Hacked . | . . . . . . . . . . . . . Hacks Repelled . | . . . . . . . . . . . . . Allies | -11 -10 -10 -9 -9 -8 -7 -7 -7 -5 -5 -5 -4 -------- Run | Scr Mat Min Mat Min Mat Fac Sto Rec Fac Was Fac Fac Total Allies 18 | . . . . 3 . . 15 . . . . . Largest Group 10 | . . . . 3 . . 10 . . . . . Highest-Rated Group 179 | . . . . 40 . . 179 . . . . . Highest-Rated Ally 99 | . . . . 16 . . 99 . . . . . Total Orders . | . . . . . . . . . . . . . Ally Attacks 207 | . . . . 23 . . 184 . . . . . Total Damage 5752 | . . . . 221 . . 5531 . . . . . Kills 52 | . . . . 3 . . 49 . . . . . Allies Corrupted . | . . . . . . . . . . . . . Allies Melted . | . . . . . . . . . . . . . Intel | -11 -10 -10 -9 -9 -8 -7 -7 -7 -5 -5 -5 -4 ------- Run | Scr Mat Min Mat Min Mat Fac Sto Rec Fac Was Fac Fac Robot Analysis Total . | . . . . . . . . . . . . . Derelict Logs Recovered 3 | . . 1 . 2 . . . . . . . . Drone Launches 16 | . . . . . . . 16 . . . . . Drone Recoveries . | . . . . . . . . . . . . . Exploration | -11 -10 -10 -9 -9 -8 -7 -7 -7 -5 -5 -5 -4 ------------- Run | Scr Mat Min Mat Min Mat Fac Sto Rec Fac Was Fac Fac Turns Passed 2316 | 15 41 294 34 184 113 295 669 78 184 49 137 223 Spaces Moved 4305 | 24 79 556 68 331 169 547 1033 216 482 73 319 408 Core 2437 | 24 79 556 68 331 169 547 301 . 33 73 8 248 Treads . | . . . . . . . . . . . . . Legs . | . . . . . . . . . . . . . Wheels . | . . . . . . . . . . . . . Hover . | . . . . . . . . . . . . . Flight 1868 | . . . . . . . 732 216 449 . 311 160 Fastest Speed 32 | 50 50 50 50 50 50 50 32 35 32 50 40 40 Average Speed 44 | 50 50 50 50 50 50 50 39 35 35 50 40 46 Slowest Speed 100 | 50 50 50 50 50 50 50 100 35 50 50 50 50 Overloaded Moves 34 | . . . . . . . . . 34 . . . Propulsion Burnouts . | . . . . . . . . . . . . . Robots Hopped 38 | . . . . . . . 15 7 10 . 5 1 Cave-ins Triggered . | . . . . . . . . . . . . . Exploration Rate (%) 38 | 4 22 95 16 44 25 23 97 51 20 69 13 16 Regions Visited 12 Branch Regions 4 Pre-discovered Areas 2 | . . 1 . 1 . . . . . . . . Known Exits Taken 5 | . . . 1 . 1 1 1 . . . 1 . Unknown Exits Taken 5 | 1 1 1 . 1 . . . 1 . . . . Scrap Searched 2 | . . 1 . 1 . . . . . . . . Spaces Dug . | . . . . . . . . . . . . . Terrain Destroyed 106 | . . . . . 28 . . . 39 . . 39 Melee . | . . . . . . . . . . . . . Projectile 1 | . . . . . . . . . . . . 1 AOE 105 | . . . . . 28 . . . 39 . . 38 Actions | -11 -10 -10 -9 -9 -8 -7 -7 -7 -5 -5 -5 -4 --------- Run | Scr Mat Min Mat Min Mat Fac Sto Rec Fac Was Fac Fac Total 4576 | 25 79 566 67 348 187 564 1209 210 478 84 319 440 Wait 156 | . . . . 15 6 4 107 . . 11 . 13 Move 4222 | 23 78 555 67 330 168 546 1003 202 464 72 308 406 Hop 34 | . . . . . . . 14 6 8 . 5 1 Pick Up 6 | . . . . 1 . 1 2 1 . . . 1 Fast Attach 40 | 2 1 1 . . 3 10 11 1 3 1 4 3 Attach 10 | . . . . . 1 . 5 . . . 2 2 Detach 9 | . . 1 . . 1 1 3 . . . . 3 Swap . | . . . . . . . . . . . . . Drop 12 | . . . . . . 2 9 . . . . 1 Fire 13 | . . . . . 8 . . . 3 . . 2 Melee 47 | . . . . . . . 47 . . . . . Ram 11 | . . 1 . 2 . . . . . . . 8 Kick . | . . . . . . . . . . . . . Crush 8 | . . 8 . . . . . . . . . . Escape Stasis . | . . . . . . . . . . . . . Rewire . | . . . . . . . . . . . . . Trap . | . . . . . . . . . . . . . Miscellaneous 8 | . . . . . . . 8 . . . . . Route ------- -11/Scrapyard -10/Materials (discovered 2 exits: Mat / [*Min]) -10/Mines -9/Materials -9/Mines (discovered 2 exits: *Mat x2) -8/Materials (discovered 3 exits: *Fac x3) -7/Factory (discovered 7 exits: Fac x4 / *Sto / *Low x2) -7/Storage (discovered 2 exits: *Fac / *Rec) -7/Recycling -5/Factory -5/Waste -5/Factory (discovered 4 exits: *Fac x4) -4/Factory (discovered 5 exits: Res x4 / *Upp) History --------- Turn | Location | Event 8 | -11/Scrapyard | Discovered new exit (range 16) 16 | -11/Scrapyard | Entered Materials 30 | -10/Materials | Discovered new exit (range 20) 30 | -10/Materials | Discovered new exit (range 22) 57 | -10/Materials | Entered Mines 110 | -10/Mines | Met a Derelict bent on vengeance 199 | -10/Mines | Learned location of Storage (-7) 300 | -10/Mines | Build established: Mutant 303 | -10/Mines | Core integrity fell below 50% 326 | -10/Mines | Core integrity fell below 20% 349 | -10/Mines | Discovered new exit (range 5) 351 | -10/Mines | Entered Materials 351 | -9/Materials | Evolved 2 slots: Propulsion x1, Utility x1 380 | -9/Materials | Discovered new exit (range 11) 381 | -9/Materials | Identified exit to Mines 385 | -9/Materials | Entered Mines 388 | -9/Mines | Discovered new exit (range 5) 402 | -9/Mines | Assisted by bots powering up and referring to "LRC-V3" 458 | -9/Mines | Assisted by bots powering up and referring to "LRC-V3" 483 | -9/Mines | Discovered new exit (range 3) 513 | -9/Mines | Assembled infested the area 549 | -9/Mines | Core integrity fell below 50% 569 | -9/Mines | Entered Materials 569 | -8/Materials | Evolved 2 slots: Propulsion x1, Utility x1 663 | -8/Materials | Identified exit to Factory 682 | -8/Materials | Entered Factory 682 | -7/Factory | Evolved 2 slots: Propulsion x1, Utility x1 778 | -7/Factory | Discovered new exit (range 12) 796 | -7/Factory | Identified exit to Factory 816 | -7/Factory | Identified exit to Storage 816 | -7/Factory | Identified exit to Lower Caves 977 | -7/Factory | Entered Storage 978 | -7/Storage | Identified exit to Recycling 997 | -7/Storage | Assisted by bots powering up and referring to "LRC-V3" 1066 | -7/Storage | Met 01-MTF 1127 | -7/Storage | Discovered exit to Factory (range 17) 1308 | -7/Storage | Garrison activated, responded to threat 1377 | -7/Storage | First assault squad dispatched 1423 | -7/Storage | Lost 5 parts (1p3n1u) 1470 | -7/Storage | Used back door to open Recycling access 1496 | -7/Storage | Core integrity fell below 50% 1646 | -7/Storage | Entered Recycling 1669 | -7/Recycling | Spotter reported a threat 1671 | -7/Recycling | Spotter reported a threat 1684 | -7/Recycling | Spotter reported a threat 1710 | -7/Recycling | Spotter reported a threat 1710 | -7/Recycling | Spotter reported a threat 1710 | -7/Recycling | Spotter reported a threat 1721 | -7/Recycling | Discovered new exit (range 9) 1722 | -7/Recycling | Spotter reported a threat 1724 | -7/Recycling | Entered Factory 1724 | -5/Factory | Evolved 4 slots: Power x1, Utility x3 1853 | -5/Factory | Lost 3 parts (1n1u1w) 1877 | -5/Factory | Core integrity fell below 50% 1908 | -5/Factory | Sucked down chute 1908 | -5/Factory | Entered Waste 1916 | -5/Waste | Spotted C-40 Crusher 1925 | -5/Waste | Lost 4 parts (2n1u1w) 1928 | -5/Waste | Spotted C-40 Crusher 1928 | -5/Waste | Spotted C-40 Crusher 1929 | -5/Waste | Spotted C-40 Crusher 1929 | -5/Waste | Spotted C-40 Crusher 1935 | -5/Waste | Spotted C-40 Crusher 1943 | -5/Waste | Discovered new exit (range 10) 1957 | -5/Waste | Entered Factory 2070 | -5/Factory | Identified exit to Factory 2075 | -5/Factory | Core integrity fell below 20% 2094 | -5/Factory | Entered another Factory area 2094 | -4/Factory | Evolved 2 slots: Utility x2 2130 | -4/Factory | Discovered new exit (range 15) 2144 | -4/Factory | Identified exit to Upper Caves 2215 | -4/Factory | Identified exit to Research 2247 | -4/Factory | Core integrity fell below 50% 2290 | -4/Factory | Core integrity fell below 20% 2317 | -4/Factory | Destroyed by S-27 Virus with Autogun Last Messages --------------- 02271_ T-07 Excavator is excavating. 02279_ Penetrated by Slug. 02300_ Hacking Suite destroyed. 02302_ Acquired Hvy. Neutron Cannon. 02305_ Power Conduit explodes. 02305_ S-27 Virus destroyed. 02305_ Power Conduit explodes. 02305_ S-27 Virus destroyed. 02305_ Power Conduit explodes. 02305_ VTOL Module melted. 02305_ S-27 Virus destroyed. 02305_ Hvy. Neutron Cannon destroyed. 02305_ Destroyed Hvy. Neutron Cannon. 02305_ Imp. Signal Interpreter destroyed. 02305_ Destroyed Imp. Signal Interpreter. 02305_ Adv. Hacking Suite destroyed. 02305_ Destroyed Adv. Hacking Suite. 02305_ Adv. Signal Interpreter destroyed. 02305_ Destroyed Adv. Signal Interpreter. 02305_ Power Conduit explodes. Map ----- +----------------------------------------------------+ | | | | | | | | | | | | | | | | | | | | | | | | | | | ???##????????????????###?????????????????????????? | | #### ##????????????? ????????????????????????? | | ###??##???# = #?????????????????????? | | ? #???# #?????????????????????? | | """ #???# """ """ #?????????????????????? | | """ #???# """ """ #?????????????????????? | | """ #???# """ """ #?????????????????????? | | #???? ??????????????????????? | | """ #?????? ????????????????????????? | | """ #########+########??????????????????? | | """ # #??????????????????? | | # #??????????????????? | | """ s @ +??????????????????? | | """ # #??????????????????? | | """ # #??????????????????? | | # ######??????????????????? | | ###### #???????????????????????? | | R #???????????????????????? | | ############## #???????????????????????? | | # ????????????# #???????????????????????? | | #""" ???????????# #???????????????????????? | | #""" "?????????? ???????????????????????? | | #""" ""?????????######??????????????????????? | | #"S ????????????????????????????????????? | | #???] """????????????????????????????????????? | | #??? ""?????????????????????????????????????? | | #??? "??????????????????????????????????????? | | #??? ??????????????????????????????????????? | | ^ #????? ??????????????????????????????????????? | | #????????????????????????????????????????????? | | +????????????????????????????????????????????? | | #??????????????????????????????????